bitfinex/quotes_SOLUSD_20241115
["timestamp","ask_amount","ask_price","bid_price","bid_amount"]
[1731648286983,17.96358003,206.8,206.73,17.75951113]
[1731648287273,17.96358003,206.76,206.68,17.96358003]
[1731648287455,17.96358003,206.79,206.72,0.12549]
[1731648287963,17.96358003,206.76,206.69,17.96358003]
[1731648288282,17.96358003,206.72,206.67,16.9351]
[1731648288593,17.96358003,206.73,206.67,16.9351]
[1731648289675,17.96358003,206.76,206.69,17.96358003]
[1731648289879,17.96358003,206.76,206.69,0.12549]
[1731648290179,17.96358003,206.8,206.72,17.96358003]
[1731648290361,17.96358003,206.79,206.71,17.96358003]
[1731648290875,17.96358003,206.79,206.72,17.96358003]
[1731648291182,17.96358003,206.82,206.75,17.96358003]
[1731648291480,4.8345,206.85,206.71,20.0]
[1731648291481,17.96358003,206.81,206.74,17.96358003]
[1731648291664,17.96358003,206.81,206.73,17.96358003]
[1731648291858,17.96358003,206.81,206.74,17.96358003]
[1731648292059,17.96358003,206.81,206.75,16.9285]
[1731648292265,17.96358003,206.8,206.75,16.9285]
[1731648293660,17.96358003,206.8,206.75,12.0918]
[1731648294281,17.96358003,206.78,206.73,4.8372]
[1731648294457,17.96358003,206.8,206.73,4.8372]
[1731648295078,17.96358003,206.79,206.73,4.8372]
[1731648295382,17.96358003,206.8,206.73,34.89378003]
[1731648296276,17.96358003,206.83,206.75,17.96358003]
[1731648297173,17.96358003,206.82,206.75,17.96358003]
[1731648297880,17.96358003,206.82,206.76,16.9278]
[1731648298185,17.96358003,206.81,206.76,16.9278]
[1731648298976,17.96358003,206.82,206.75,17.96358003]
[1731648299368,17.96358003,206.82,206.74,17.96358003]
[1731648299961,17.96358003,206.82,206.75,17.96358003]
[1731648300162,17.96358003,206.82,206.74,17.96358003]
[1731648300377,17.96358003,206.81,206.73,17.96358003]
[1731648300579,17.96358003,206.81,206.74,20.0]
[1731648301278,17.96358003,206.8,206.75,16.9285]
[1731648301787,17.96358003,206.77,206.72,20.0]
[1731648302082,17.96358003,206.74,206.71,4.8375]
[1731648302271,4.8344,206.85,206.71,16.9317]
[1731648303163,4.8344,206.85,206.72,20.0]
[1731648303369,11.22386195,206.82,206.75,11.22386195]
[1731648304590,22.3527,206.93,206.8,11.22386195]
[1731648304767,22.3527,206.93,206.76,4.8365]
[1731648304768,11.22386195,206.89,206.81,11.22386195]
[1731648304970,11.22386195,206.88,206.81,11.22386195]
[1731648305273,11.22386195,206.87,206.79,11.22386195]
[1731648305475,11.22386195,206.87,206.8,11.22386195]
[1731648305678,11.22386195,206.87,206.81,4.8353]
[1731648306088,11.22386195,206.82,206.77,20.0]
[1731648306391,11.22386195,206.8,206.76,12.0912]
[1731648306584,11.22386195,206.77,206.73,4.8371]
[1731648306790,22.0019,206.83,206.61,58.19311877]
[1731648306791,11.22386195,206.74,206.61,58.19311877]
[1731648306979,11.22386195,206.74,206.67,4.8386]
[1731648307686,21.9019,206.83,206.69,11.22386195]
[1731648307893,11.22386195,206.84,206.76,11.22386195]
[1731648308182,11.22386195,206.82,206.74,11.22386195]
[1731648308867,11.22386195,206.84,206.76,11.22386195]
[1731648309486,11.22386195,206.86,206.78,11.22386195]
[1731648309694,0.1,206.92,206.82,11.22386195]
[1731648309695,11.22386195,206.92,206.82,11.22386195]
[1731648309890,11.22386195,206.95,206.86,11.22386195]
[1731648310090,0.1,207.02,206.79,0.1]
[1731648310091,11.22386195,206.97,206.88,11.22386195]
[1731648310388,11.22386195,206.97,206.9,11.22386195]
[1731648310776,17.93236427,206.98,206.89,17.93236427]
[1731648311270,17.93236427,207.0,206.91,17.93236427]
[1731648311784,17.93236427,207.02,206.95,17.93236427]
[1731648311971,17.93236427,207.03,206.96,17.93236427]
[1731648312175,17.93236427,207.05,206.96,17.93236427]
[1731648312379,17.93236427,207.05,206.98,17.93236427]
[1731648312590,18.42110067,207.06,206.99,17.93236427]
[1731648313075,17.93236427,207.05,206.98,17.93236427]
[1731648313272,17.93236427,207.03,206.96,34.84376427]
[1731648313471,17.93236427,207.05,206.98,17.93236427]
[1731648313696,17.93236427,207.05,206.97,17.93236427]
[1731648313900,17.93236427,207.02,206.96,16.9114]
[1731648314082,17.93236427,207.01,206.96,16.9114]
[1731648314392,17.93236427,207.02,206.96,16.9114]
[1731648314577,17.93236427,207.03,206.96,34.84376427]
[1731648315792,17.93236427,207.02,206.96,16.9114]
[1731648315998,17.93236427,207.03,206.96,34.84376427]
[1731648317513,17.93236427,207.04,206.98,16.9097]
[1731648317692,17.93236427,207.02,206.98,16.9097]
[1731648317893,17.93236427,207.02,206.98,12.0784]
[1731648318469,17.93236427,207.03,206.98,12.0784]
[1731648318689,17.93236427,207.05,206.98,16.9097]
[1731648319688,17.93236427,207.05,206.98,30.01076427]
[1731648319884,17.93236427,207.04,206.98,12.0784]
[1731648320799,17.93236427,207.05,206.98,12.0784]
[1731648321007,17.93236427,207.05,206.98,30.01076427]
[1731648321785,17.93236427,207.05,206.98,34.84206427]
[1731648323509,0.4887364,207.06,207.03,17.93236427]
[1731648323801,0.4887364,207.06,207.04,17.93236427]
[1731648324179,0.4887364,207.06,207.05,17.93236427]
[1731648325199,0.4887364,207.06,207.05,78.09084827]
[1731648325585,0.4887364,207.06,207.05,82.92054827]
[1731648326487,0.4887364,207.06,207.05,59.14366427]
[1731648327414,11.28531171,207.17,207.06,26.3448]
[1731648327595,6.45841171,207.17,207.16,17.93236427]
[1731648328603,6.45841171,207.17,207.16,22.75946427]
[1731648329304,6.45841171,207.17,207.16,42.75946427]
[1731648330295,6.45841171,207.17,207.16,17.93236427]
[1731648332799,6.45841171,207.17,207.16,18.05785427]
[1731648333319,6.45841171,207.17,207.16,17.93236427]
[1731648333809,6.45841171,207.17,207.11,24.8282]
[1731648334010,6.45841171,207.17,207.16,17.93236427]
[1731648336107,6.45841171,207.17,207.15,17.93236427]
[1731648336426,6.45841171,207.17,207.16,17.93236427]
[1731648336786,6.45841171,207.17,207.16,11.17950508]
[1731648337203,6.45841171,207.17,207.14,11.17950508]
[1731648337491,6.45841171,207.17,207.13,11.17950508]
[1731648337692,6.45841171,207.17,207.14,11.17950508]
[1731648339399,6.45841171,207.17,207.15,11.17950508]
[1731648339794,6.45841171,207.17,207.16,11.17950508]
[1731648340315,6.45841171,207.17,207.15,11.17950508]
[1731648340697,6.45841171,207.17,207.14,11.17950508]
[1731648341216,6.45841171,207.17,207.15,11.17950508]
[1731648343223,6.45841171,207.17,207.16,11.17950508]
[1731648344496,6.45841171,207.17,207.08,16.9016]
[1731648344497,11.28541171,207.17,207.08,12.0726]
[1731648344704,22.46491679,207.17,207.1,11.17950508]
[1731648344904,11.28541171,207.17,207.1,11.17950508]
[1731648346201,11.28541171,207.17,207.11,11.17950508]
[1731648346723,11.28541171,207.17,207.12,11.17950508]
[1731648346922,11.28541171,207.17,207.11,11.17950508]
[1731648347430,22.46491679,207.17,207.1,11.17950508]
[1731648347928,11.28541171,207.17,207.11,11.17950508]
[1731648349203,11.17950508,207.16,207.09,11.17950508]
[1731648349517,33.33990508,207.16,207.09,11.17950508]
[1731648349699,33.33990508,207.16,207.03,4.8302]
[1731648349700,22.1604,207.16,207.1,11.17950508]
[1731648350104,22.1604,207.16,207.11,11.17950508]
[1731648350731,22.1604,207.16,207.1,11.17950508]
[1731648351419,26.9877,207.16,207.1,11.17950508]
[1731648352639,38.16720508,207.16,207.09,11.17950508]
[1731648353018,26.9877,207.16,207.09,11.17950508]
[1731648353326,22.1604,207.16,207.09,11.17950508]
[1731648353524,33.33990508,207.16,207.09,11.17950508]
[1731648353732,38.16710508,207.16,207.09,11.17950508]
[1731648354441,22.1604,207.16,207.11,11.17950508]
[1731648355422,11.17950508,207.15,207.07,11.17950508]
[1731648355643,11.17950508,207.1,207.03,28.08480508]
[1731648359833,11.17950508,207.13,207.05,11.17950508]
[1731648360338,11.17950508,207.1,207.03,28.08480508]
[1731648361045,4.8282,207.12,207.05,11.17950508]
[1731648361046,16.00770508,207.12,207.05,11.17950508]
[1731648361358,22.1604,207.16,207.1,11.17950508]
[1731648361537,6.45841171,207.17,207.13,11.17950508]
[1731648362751,6.45841171,207.17,207.14,11.17950508]
[1731648363265,6.45841171,207.17,207.12,16.00740508]
[1731648364260,11.17950508,207.16,207.07,12.0731]
[1731648364550,11.17950508,207.15,207.08,11.17950508]
[1731648364857,11.28541171,207.17,207.08,11.17950508]
[1731648364858,11.17950508,207.16,207.08,11.17950508]
[1731648365554,11.17950508,207.16,207.07,12.0731]
[1731648365555,6.45841171,207.17,207.09,11.17950508]
[1731648365940,22.46491679,207.17,207.09,11.17950508]
[1731648366246,11.28541171,207.17,207.1,11.17950508]
[1731648366650,11.28541171,207.17,207.11,11.17950508]
[1731648367144,6.45841171,207.17,207.12,11.17950508]
[1731648367345,6.45841171,207.17,207.13,11.17950508]
[1731648367653,6.45841171,207.17,207.15,11.17950508]
[1731648369164,6.45841171,207.17,207.13,11.17950508]
[1731648369534,6.45841171,207.17,207.11,23.25020508]
[1731648369845,6.45841171,207.17,207.13,11.17950508]
[1731648370947,6.45841171,207.17,207.12,4.8279]
[1731648370948,6.45841171,207.17,207.14,11.17950508]
[1731648371852,6.45841171,207.17,207.13,11.17950508]
[1731648372638,6.45841171,207.17,207.15,11.17950508]
[1731648373257,11.17950508,207.24,207.15,11.17950508]
[1731648373455,11.17950508,207.24,207.17,11.17950508]
[1731648374037,11.17950508,207.24,207.18,4.8267]
[1731648374745,11.17950508,207.22,207.15,11.17950508]
[1731648374945,4.825,207.25,207.17,11.17950508]
[1731648375256,16.00450508,207.25,207.17,11.17950508]
[1731648376342,11.17950508,207.25,207.18,4.8267]
[1731648376549,22.3999,207.26,207.19,11.17950508]
[1731648376851,11.66824148,207.27,207.21,11.17950508]
[1731648376852,0.4887364,207.27,207.21,11.17950508]
[1731648378347,0.4887364,207.27,207.22,4.8257]
[1731648378747,0.4887364,207.27,207.22,16.8901]
[1731648379563,5.3134364,207.27,207.21,11.17950508]
[1731648379765,5.3134364,207.27,207.19,11.17950508]
[1731648379766,16.49294148,207.27,207.19,11.17950508]
[1731648380171,16.49294148,207.27,207.19,16.00590508]
[1731648380355,16.49294148,207.27,207.19,11.17950508]
[1731648380861,16.49294148,207.27,207.1,16.4423]
[1731648380862,11.17950508,207.24,207.11,3.8584695]
[1731648381041,11.17950508,207.22,207.15,11.17950508]
[1731648381241,33.09530508,207.23,207.15,11.17950508]
[1731648382055,11.17950508,207.25,207.17,11.17950508]
[1731648382462,11.17950508,207.25,207.18,4.8267]
[1731648382658,16.49284148,207.27,207.19,11.17950508]
[1731648382869,0.4887364,207.27,207.23,11.17950508]
[1731648383248,0.4887364,207.27,207.21,11.17950508]
[1731648383449,5.3133364,207.27,207.21,11.17950508]
[1731648383649,0.4887364,207.27,207.23,11.17950508]
[1731648383860,0.4887364,207.27,207.18,16.8935]
[1731648383861,0.4887364,207.27,207.24,11.17950508]
[1731648384053,0.4887364,207.27,207.25,11.17950508]
[1731648384454,0.4887364,207.27,207.26,4.8248]
[1731648384972,0.4887364,207.27,207.26,16.00430508]
[1731648391073,22.2003364,207.27,207.13,0.1]
[1731648391280,22.2003364,207.27,207.2,11.17950508]
[1731648391281,38.20444148,207.27,207.2,11.17950508]
[1731648391466,33.37984148,207.27,207.2,11.17950508]
[1731648391661,0.4887364,207.27,207.23,11.17950508]
[1731648391864,0.4887364,207.27,207.24,11.17950508]
[1731648392471,0.4887364,207.27,207.26,11.17950508]
[1731648392865,0.4887364,207.27,207.24,11.17950508]
[1731648393067,0.4887364,207.27,207.22,11.17950508]
[1731648393669,0.4887364,207.27,207.23,11.17950508]
[1731648393974,0.4887364,207.27,207.24,11.17950508]
[1731648394784,0.4887364,207.27,207.26,11.17950508]
[1731648395862,0.4887364,207.27,207.26,16.00430508]
[1731648396391,0.4887364,207.27,207.26,11.17950508]
[1731648396676,0.4887364,207.27,207.25,11.17950508]
[1731648396879,0.4887364,207.27,207.24,23.24240508]
[1731648397082,0.4887364,207.27,207.26,11.17950508]
[1731648397874,0.4887364,207.27,207.26,4.8248]
[1731648399084,0.4887364,207.27,207.26,16.00430508]
[1731648399261,0.4887364,207.27,207.26,4.8248]
[1731648399586,0.4887364,207.27,207.26,16.00430508]
[1731648399887,0.4887364,207.47,207.35,20.1]
[1731648400180,0.4887364,207.47,207.39,31.17950508]
[1731648400758,0.4887364,207.47,207.39,17.84050493]
[1731648400984,0.4887364,207.47,207.39,37.84050493]
[1731648401459,0.4887364,207.47,207.39,17.84050493]
[1731648401884,0.4887364,207.47,207.39,22.66230493]
[1731648402971,0.4887364,207.47,207.39,42.66230493]
[1731648405968,0.4887364,207.47,207.39,66.43918893]
[1731648406966,0.4887364,207.47,207.39,42.66230493]
[1731648409573,4.8218,207.39,207.25,4.825]
[1731648409769,55.40100493,207.4,207.33,17.84050493]
[1731648409983,55.40100493,207.4,207.36,17.84050493]
[1731648409984,37.5605,207.4,207.36,17.84050493]
[1731648410892,37.5605,207.4,207.35,17.84050493]
[1731648411473,55.40100493,207.4,207.34,17.84050493]
[1731648411981,37.5605,207.4,207.36,17.84050493]
[1731648412169,15.0,207.4,207.38,17.84050493]
[1731648412376,15.0,207.4,207.36,17.84050493]
[1731648412591,32.84050493,207.4,207.34,17.84050493]
[1731648412984,15.0,207.4,207.35,17.84050493]
[1731648413292,15.0,207.4,207.39,17.84050493]
[1731648413606,15.0,207.4,207.39,22.66230493]
[1731648414070,15.0,207.4,207.39,42.66230493]
[1731648419778,15.0,207.4,207.39,22.66230493]
[1731648420895,15.0,207.4,207.39,35.97438703]
[1731648422794,15.0,207.4,207.39,59.75127103]
[1731648424401,0.4887364,207.47,207.4,43.776884]
[1731648424580,0.4887364,207.47,207.46,11.15258703]
[1731648425575,0.4887364,207.47,207.45,15.97288703]
[1731648425796,0.4887364,207.47,207.45,11.15258703]
[1731648425989,0.4887364,207.47,207.35,20.0]
[1731648426176,0.4887364,207.47,207.42,11.15258703]
[1731648426793,11.64132343,207.47,207.4,11.15258703]
[1731648426993,0.4887364,207.47,207.43,11.15258703]
[1731648427501,0.4887364,207.47,207.43,15.97328703]
[1731648427701,0.4887364,207.47,207.43,4.8207]
[1731648428282,0.4887364,207.47,207.36,11.15258703]
[1731648428283,33.30748703,207.44,207.36,12.056]
[1731648428483,11.15258703,207.42,207.36,12.056]
[1731648428790,11.15258703,207.42,207.36,23.20858703]
[1731648428986,11.15258703,207.4,207.36,12.056]
[1731648429203,11.15258703,207.37,207.31,4.8236]
[1731648429411,6.0505,207.44,207.36,11.15258703]
[1731648429709,0.4887364,207.47,207.43,11.15258703]
[1731648429880,0.4887364,207.47,207.45,11.15258703]
[1731648430602,0.4887364,207.47,207.39,0.2]
[1731648430905,0.4887364,207.47,207.45,17.83404334]
[1731648431399,0.4887364,207.47,207.44,17.83404334]
[1731648431703,0.4887364,207.47,207.44,34.70604334]
[1731648434093,0.4887364,207.47,207.45,17.83404334]
[1731648434296,0.4887364,207.47,207.46,17.83404334]
[1731648437291,0.4887364,207.47,207.46,4.8202]
[1731648437584,0.4887364,207.47,207.46,22.65424334]
[1731648438301,0.4887364,207.47,207.41,23.455344]
[1731648438497,0.4887364,207.47,207.46,17.83404334]
[1731648440504,0.4887364,207.47,207.46,4.8202]
[1731648440708,0.4887364,207.47,207.41,20.0]
[1731648440911,0.4887364,207.47,207.46,17.83404334]
[1731648441905,0.8,207.55,207.49,0.1]
[1731648442106,0.8,207.55,207.54,17.83404334]
[1731648442523,0.8,207.55,207.54,22.65234334]
[1731648443500,0.8,207.55,207.54,7.65234334]
[1731648444097,0.8,207.55,207.54,2.83404334]
[1731648444422,0.8,207.55,207.53,34.69884334]
[1731648444600,0.8,207.55,207.53,29.88034334]
[1731648445107,0.8,207.55,207.53,12.0463]
[1731648445413,0.8,207.55,207.54,17.83404334]
[1731648445604,0.8,207.55,207.53,16.8648]
[1731648445605,0.8,207.55,207.53,34.69884334]
[1731648445798,0.8,207.55,207.53,29.88034334]
[1731648446019,0.8,207.55,207.54,17.83404334]
[1731648447205,0.8,207.55,207.54,37.83404334]
[1731648448318,0.8,207.55,207.54,61.61092734]
[1731648449322,22.1932,207.66,207.55,48.594984]
[1731648449621,22.1932,207.66,207.62,17.83404334]
[1731648449792,22.1932,207.66,207.61,17.83404334]
[1731648451794,22.1932,207.66,207.6,22.65084334]
[1731648453226,22.1932,207.66,207.61,17.83404334]
[1731648453517,22.1932,207.66,207.62,17.83404334]
[1731648453701,22.1932,207.66,207.61,22.65064334]
[1731648454110,22.1932,207.66,207.62,17.83404334]
[1731648454500,22.1932,207.66,207.62,22.65034334]
[1731648455429,22.1932,207.66,207.61,29.87584334]
[1731648455612,22.1932,207.66,207.6,17.83404334]
[1731648455798,22.1932,207.66,207.61,17.83404334]
[1731648455996,22.1932,207.66,207.62,17.83404334]
[1731648457203,44.84294334,207.66,207.6,17.83404334]
[1731648457415,40.02724334,207.66,207.59,17.83404334]
[1731648457621,22.1932,207.66,207.61,17.83404334]
[1731648458121,22.1932,207.66,207.63,17.83404334]
[1731648458327,22.1932,207.66,207.62,17.83404334]
[1731648458514,22.1932,207.66,207.61,17.83404334]
[1731648458722,40.02724334,207.66,207.6,17.83404334]
[1731648459326,17.83404334,207.62,207.56,17.83404334]
[1731648459713,17.83404334,207.62,207.56,22.65174334]
[1731648459906,22.65054334,207.62,207.55,17.83404334]
[1731648460107,22.65054334,207.62,207.56,17.83404334]
[1731648460313,22.65024334,207.64,207.57,17.83404334]
[1731648460933,17.83404334,207.63,207.57,17.83404334]
[1731648461140,17.83404334,207.64,207.57,17.83404334]
[1731648461314,22.1932,207.66,207.6,17.83404334]
[1731648461714,40.02724334,207.66,207.6,17.83404334]
[1731648461925,40.02724334,207.66,207.59,4.8169]
[1731648461926,44.84274334,207.66,207.59,17.83404334]
[1731648462229,17.83404334,207.65,207.58,17.83404334]
[1731648462407,17.83404334,207.65,207.59,17.83404334]
[1731648463625,17.83404334,207.65,207.59,22.65094334]
[1731648464535,22.1932,207.66,207.64,17.83404334]
[1731648464826,0.4887364,207.68,207.64,17.83404334]
[1731648465006,0.4887364,207.68,207.65,17.83404334]
[1731648465206,0.4887364,207.68,207.66,17.83404334]
[1731648465631,0.4887364,207.68,207.66,4.8154]
[1731648465825,0.4887364,207.68,207.66,22.64944334]
[1731648466125,0.4887364,207.68,207.66,4.8154]
[1731648467133,0.4887364,207.68,207.66,17.83404334]
[1731648467649,0.4887364,207.68,207.65,17.83404334]
[1731648468027,0.4887364,207.68,207.66,17.83404334]
[1731648468716,0.4887364,207.68,207.65,17.83404334]
[1731648469113,0.4887364,207.68,207.67,17.83404334]
[1731648470643,0.4887364,207.68,207.67,22.64934334]
[1731648474942,0.4887364,207.68,207.66,4.8155]
[1731648475249,0.4887364,207.68,207.66,22.64954334]
[1731648475629,0.4887364,207.68,207.67,17.83404334]
[1731648480429,0.4887364,207.68,207.66,22.64954334]
[1731648480739,0.4887364,207.68,207.66,4.8155]
[1731648480937,0.4887364,207.68,207.66,15.94171888]
[1731648481242,0.4887364,207.68,207.66,4.8155]
[1731648483326,0.4887364,207.68,207.66,12.0387]
[1731648483637,0.4887364,207.68,207.66,16.8542]
[1731648483950,0.4887364,207.68,207.66,12.0387]
[1731648484140,0.4887364,207.68,207.66,16.8542]
[1731648484541,0.4887364,207.68,207.64,11.12621888]
[1731648484740,11.61495528,207.68,207.62,12.041]
[1731648485452,0.4887364,207.68,207.63,11.12621888]
[1731648486344,0.4887364,207.68,207.55,0.1]
[1731648486345,34.19901888,207.64,207.45,4.8204]
[1731648486546,11.12621888,207.58,207.51,11.12621888]
[1731648486751,11.12621888,207.53,207.46,7.54035056]
[1731648486948,11.12621888,207.52,207.46,7.54035056]
[1731648487161,11.12621888,207.51,207.46,7.54035056]
[1731648487449,21.5779,207.55,207.46,7.54035056]
[1731648487652,11.12621888,207.51,207.46,7.54035056]
[1731648488038,11.12621888,207.5,207.46,7.54035056]
[1731648488234,11.12621888,207.49,207.45,12.051]
[1731648488438,11.12621888,207.46,207.43,7.54381508]
[1731648488647,11.12621888,207.48,207.41,11.12621888]
[1731648488843,26.3961,207.55,207.42,7.54398326]
[1731648489346,21.5779,207.55,207.42,7.54398326]
[1731648489541,0.33746318,207.59,207.46,0.2]
[1731648489754,4.8174,207.58,207.46,0.2]
[1731648489942,17.84306888,207.51,207.46,0.2]
[1731648490339,17.84306888,207.5,207.44,0.1]
[1731648490663,17.84306888,207.49,207.44,0.1]
[1731648491032,17.84306888,207.52,207.46,0.2]
[1731648491653,17.84306888,207.51,207.46,0.2]
[1731648492356,17.84306888,207.51,207.46,0.1]
[1731648492558,17.84306888,207.49,207.44,5.0204]
[1731648493441,17.84306888,207.46,207.43,12.0522]
[1731648493640,17.84306888,207.44,207.38,4.922]
[1731648493847,17.84306888,207.39,207.37,12.0552]
[1731648494361,17.84306888,207.38,207.34,12.56935151]
[1731648494552,17.84306888,207.39,207.36,0.1]
[1731648494754,17.84306888,207.4,207.36,0.1]
[1731648494946,17.84306888,207.4,207.36,0.2]
[1731648495145,17.84306888,207.44,207.38,0.2]
[1731648495467,17.84306888,207.51,207.44,0.1]
[1731648495643,17.84306888,207.51,207.44,17.94306888]
[1731648495842,17.84306888,207.47,207.41,18.04306888]
[1731648496043,17.84306888,207.47,207.43,0.1]
[1731648496358,17.84306888,207.46,207.41,0.2]
[1731648496544,17.84306888,207.46,207.41,0.1]
[1731648496859,17.84306888,207.43,207.39,0.1]
[1731648497057,17.84306888,207.42,207.39,0.1]
[1731648497558,17.84306888,207.46,207.41,0.1]
[1731648498159,17.84306888,207.45,207.41,0.1]
[1731648499260,17.84306888,207.46,207.41,0.1]
[1731648499958,17.84306888,207.44,207.39,0.2]
[1731648500462,17.84306888,207.44,207.39,0.1]
[1731648500864,17.84306888,207.44,207.34,7.64655151]
[1731648500865,17.84306888,207.4,207.34,7.64655151]
[1731648501155,17.84306888,207.37,207.32,0.1]
[1731648501361,17.84306888,207.37,207.32,5.0233]
[1731648503461,17.84306888,207.34,207.31,12.059]
[1731648503848,17.84306888,207.34,207.31,12.159]
[1731648504043,17.84306888,207.34,207.31,12.059]
[1731648504261,17.84306888,207.37,207.31,16.9826]
[1731648504449,17.84306888,207.38,207.32,0.1]
[1731648505196,17.84306888,207.37,207.32,0.1]
[1731648506876,17.84306888,207.35,207.32,0.1]
[1731648507061,17.84306888,207.34,207.28,0.2]
[1731648507240,17.84306888,207.34,207.28,5.0243]
[1731648507440,17.84306888,207.34,207.3,0.1]
[1731648507644,17.84306888,207.34,207.28,0.2]
[1731648507868,17.84306888,207.33,207.28,0.2]
[1731648508067,17.84306888,207.3,207.27,0.1]
[1731648508358,17.84306888,207.29,207.27,0.1]
[1731648508747,17.84306888,207.3,207.27,0.1]
[1731648508943,17.84306888,207.3,207.26,12.0618]
[1731648509250,17.84306888,207.28,207.23,4.8254]
[1731648509557,17.84306888,207.27,207.23,0.1]
[1731648510340,17.84306888,207.28,207.25,0.1]
[1731648511572,17.84306888,207.27,207.22,0.1]
[1731648511752,22.0082,207.34,207.27,0.1]
[1731648511753,17.84306888,207.33,207.27,0.1]
[1731648511953,33.25626888,207.34,207.27,0.1]
[1731648512168,17.84306888,207.37,207.31,0.1]
[1731648512851,17.84306888,207.37,207.33,0.1]
[1731648513464,24.43806888,207.38,207.33,0.1]
[1731648513864,17.84306888,207.37,207.33,0.1]
[1731648514875,17.84306888,207.36,207.33,0.1]
[1731648517252,17.84306888,207.36,207.29,29.90296888]
[1731648517253,17.84306888,207.34,207.29,0.1]
[1731648517558,17.84306888,207.33,207.29,0.1]
[1731648517765,17.84306888,207.34,207.29,0.1]
[1731648518156,17.84306888,207.34,207.31,0.1]
[1731648518674,17.84306888,207.36,207.31,0.1]
[1731648518878,17.84306888,207.37,207.31,0.1]
[1731648519068,17.84306888,207.37,207.31,16.9828]
[1731648519573,17.84306888,207.37,207.31,34.82586888]
[1731648520077,22.66476888,207.4,207.35,0.1]
[1731648520280,17.84306888,207.39,207.35,0.1]
[1731648520573,17.84306888,207.39,207.33,4.9231]
[1731648520763,17.84306888,207.38,207.35,0.1]
[1731648521463,17.84306888,207.36,207.26,0.1]
[1731648521665,17.84306888,207.3,207.28,0.1]
[1731648522057,17.00019,207.41,207.28,0.1]
[1731648522058,17.84306888,207.31,207.28,0.1]
[1731648522453,17.84306888,207.34,207.3,0.1]
[1731648522869,11.16725512,207.34,207.3,0.1]
[1731648523182,11.16725512,207.33,207.3,0.1]
[1731648523678,23.776884,207.4,207.3,0.1]
[1731648523679,11.16725512,207.34,207.3,0.1]
[1731648524089,11.16725512,207.37,207.32,0.1]
[1731648524388,11.16725512,207.41,207.35,0.1]
[1731648524584,11.16725512,207.41,207.37,0.1]
[1731648524783,17.85493993,207.41,207.37,0.1]
[1731648525083,17.85493993,207.39,207.35,0.1]
[1731648526463,17.85493993,207.38,207.35,0.1]
[1731648526986,17.85493993,207.37,207.35,0.1]
[1731648527160,17.85493993,207.36,207.33,0.1]
[1731648527591,17.85493993,207.37,207.33,0.1]
[1731648528087,17.85493993,207.39,207.35,0.1]
[1731648528797,22.67653993,207.4,207.35,0.1]
[1731648529285,17.85493993,207.39,207.35,0.1]
[1731648529477,17.85493993,207.42,207.37,0.1]
[1731648529667,17.85493993,207.43,207.38,0.1]
[1731648530202,17.85493993,207.45,207.39,17.95493993]
[1731648530362,17.85493993,207.45,207.4,0.1]
[1731648530566,17.85493993,207.44,207.4,0.1]
[1731648530762,6.5271,207.49,207.4,0.1]
[1731648530763,17.85493993,207.45,207.4,0.1]
[1731648530987,17.85493993,207.46,207.4,0.1]
[1731648531286,17.85493993,207.45,207.4,0.1]
[1731648532365,17.85493993,207.46,207.4,0.1]
[1731648533176,22.67523993,207.46,207.4,0.1]
[1731648533980,17.85493993,207.45,207.4,0.1]
[1731648534684,17.85493993,207.47,207.41,0.1]
[1731648534868,17.85493993,207.48,207.43,0.1]
[1731648535810,17.85493993,207.47,207.43,0.1]
[1731648536094,17.85493993,207.46,207.43,0.1]
[1731648536780,17.85493993,207.47,207.43,0.1]
[1731648538573,17.85493993,207.48,207.43,0.1]
[1731648539289,17.85493993,207.48,207.43,0.2]
[1731648539492,17.85493993,207.48,207.43,5.0207]
[1731648539996,17.85493993,207.46,207.43,0.1]
[1731648540572,17.85493993,207.45,207.41,0.1]
[1731648540778,17.85493993,207.45,207.4,12.054]
[1731648540987,17.85493993,207.41,207.37,0.1]
[1731648541180,17.85493993,207.4,207.37,0.1]
[1731648541478,17.85493993,207.39,207.37,0.1]
[1731648541976,17.85493993,207.39,207.35,12.0565]
[1731648541977,17.85493993,207.39,207.35,12.1565]
[1731648543494,17.85493993,207.37,207.33,0.1]
[1731648543678,21.4538,207.45,207.33,0.1]
[1731648543679,17.85493993,207.41,207.36,0.1]
[1731648543886,17.85493993,207.41,207.38,0.1]
[1731648544779,11.16042075,207.4,207.38,0.1]
[1731648545275,11.16042075,207.41,207.38,0.1]